fUSD/lending_fUSD_20250607
["ID","MTS","AMOUNT","RATE_DAILY","PERIOD"]
[364900150,1749286280835,-608.65692707,0.00035616,120]
[364900151,1749286280845,-4322.98,0.00035616,14]
[364900152,1749286280854,-4322.98,0.00035616,14]
[364900153,1749286280864,-4322.98,0.00035616,14]
[364900154,1749286280874,-4322.98,0.00035616,14]
[364900155,1749286280884,-4322.98,0.00035616,14]
[364900156,1749286280894,-4322.98,0.00035616,14]
[364900157,1749286280904,-4322.98,0.00035616,14]
[364900158,1749286280914,-4322.98,0.00035616,14]
[364900159,1749286280925,-4322.98,0.00035616,14]
[364900160,1749286280934,-4322.98,0.00035616,14]
[364900161,1749286280944,-4322.98,0.00035616,14]
[364900162,1749286280954,-4322.98,0.00035616,14]
[364900163,1749286280964,-4322.98,0.00035616,14]
[364900164,1749286280974,-4322.98,0.00035616,14]
[364900165,1749286280983,-4322.98,0.00035616,14]
[364900166,1749286280994,-4322.98,0.00035616,14]
[364900167,1749286281003,-4322.98,0.00035616,14]
[364900168,1749286281014,-4322.98,0.00035616,14]
[364900169,1749286281023,-4322.98,0.00035616,14]
[364900170,1749286281033,-4322.98,0.00035616,14]
[364900171,1749286281043,-4322.98,0.00035616,14]
[364900172,1749286281053,-4322.98,0.00035616,14]
[364900173,1749286281063,-4322.98,0.00035616,14]
[364900174,1749286281074,-151.0,0.00035616,7]
[364900175,1749286281085,-4323.18222699,0.00035616,14]
[364900176,1749286281095,-480.0,0.00035616,16]
[364900177,1749286281106,-287.757394,0.00035616,7]
[364900178,1749286281117,-480.0,0.00035616,16]
[364900179,1749286281127,-362.91401941,0.00035616,16]
[364900180,1749286281138,-151.0,0.00035616,7]
[364900181,1749286281147,-151.0,0.00035616,7]
[364900182,1749286281158,-151.0,0.00035616,7]
[364900183,1749286281167,-151.0,0.00035616,7]
[364900184,1749286281177,-307.314938,0.00035616,7]
[364900185,1749286281187,-307.314938,0.00035616,7]
[364900186,1749286281197,-307.314938,0.00035616,7]
[364900187,1749286281208,-307.314938,0.00035616,7]
[364900188,1749286281217,-6110.32,0.00035616,118]
[364900189,1749286281227,-6110.32,0.00035616,118]
[364900190,1749286281236,-6110.32,0.00035616,118]
[364900191,1749286281245,-6110.32,0.00035616,118]
[364900192,1749286281255,-6110.32,0.00035616,118]
[364900193,1749286281264,-6110.32,0.00035616,118]
[364900194,1749286281276,-6110.32,0.00035616,118]
[364900195,1749286281285,-6110.32,0.00035616,118]
[364900196,1749286281294,-6110.32,0.00035616,118]
[364900197,1749286281304,-6110.32,0.00035616,118]
[364900198,1749286281315,-6110.32,0.00035616,118]
[364900199,1749286281324,-6110.32,0.00035616,118]
[364900200,1749286281334,-6110.32,0.00035616,118]
[364900201,1749286281343,-6110.32,0.00035616,118]
[364900202,1749286281354,-6110.32,0.00035616,118]
[364900203,1749286281364,-6110.32,0.00035616,118]
[364900204,1749286281373,-6110.32,0.00035616,118]
[364900205,1749286281383,-6110.32,0.00035616,118]
[364900206,1749286281392,-6110.32,0.00035616,118]
[364900207,1749286281402,-6110.32,0.00035616,118]
[364900208,1749286281411,-6110.32,0.00035616,118]
[364900209,1749286281420,-6110.32,0.00035616,118]
[364900210,1749286281430,-6110.32,0.00035616,118]
[364900211,1749286281439,-6110.37034595,0.00035616,118]
[364900212,1749286281449,-151.0,0.00035616,7]
[364900213,1749286281458,-151.0,0.00035616,7]
[364900214,1749286281467,-480.0,0.00035616,2]
[364900215,1749286281477,-500.0,0.00035616,60]
[364900216,1749286281486,-150.0,0.00035616,2]
[364900217,1749286281496,-500.0,0.00035616,60]
[364900218,1749286281505,-151.0,0.00035616,7]
[364900219,1749286281514,-151.0,0.00035616,7]
[364900220,1749286281524,-2408.0,0.00035616,60]
[364900221,1749286281534,-500.0,0.00035616,12]
[364900222,1749286281543,-480.0,0.00035616,60]
[364900223,1749286281553,-480.0,0.00035616,60]
[364900224,1749286281562,-480.0,0.00035616,60]
[364900225,1749286281572,-492.3366481,0.00035616,60]
[364900226,1749286281581,-480.0,0.00035616,2]
[364900227,1749286281591,-480.0,0.00035616,2]
[364900228,1749286281600,-480.0,0.00035616,2]
[364900229,1749286281609,-480.0,0.00035616,2]
[364900230,1749286281619,-480.0,0.00035616,2]
[364900231,1749286281628,-480.0,0.00035616,2]
[364900232,1749286281637,-151.0,0.00035616,7]
[364900233,1749286281647,-480.0,0.00035616,2]
[364900234,1749286281656,-152.70222269,0.00035616,60]
[364900235,1749286281665,-480.0,0.00035616,2]
[364900236,1749286281674,-159.081604,0.00035616,7]
[364900237,1749286281683,-480.0,0.00035616,2]
[364900238,1749286281693,-480.0,0.00035616,2]
[364900239,1749286281703,-480.0,0.00035616,2]
[364900240,1749286281712,-155.29563107,0.00035616,60]
[364900241,1749286281721,-480.0,0.00035616,2]
[364900242,1749286281731,-480.0,0.00035616,2]
[364900243,1749286281740,-480.0,0.00035616,2]
[364900244,1749286281750,-480.0,0.00035616,2]
[364900245,1749286281760,-500.0,0.00035616,60]
[364900246,1749286281769,-480.0,0.00035616,2]
[364900247,1749286281779,-480.0,0.00035616,2]
[364900248,1749286281788,-480.0,0.00035616,2]
[364900249,1749286281798,-553.17508786,0.00035616,2]
[364900250,1749286281807,-150.0,0.00035616,2]
[364900251,1749286281817,-500.0,0.00035616,60]
[364900252,1749286281828,-151.0,0.00035616,7]
[364900253,1749286281839,-499.15,0.00035616,2]
[364900254,1749286281849,-151.0,0.00035616,7]
[364900255,1749286281859,-499.15,0.00035616,2]
[364900256,1749286281869,-499.15,0.00035616,2]
[364900257,1749286281878,-499.15,0.00035616,2]
[364900258,1749286281887,-499.15,0.00035616,2]
[364900259,1749286281897,-499.15,0.00035616,2]
[364900260,1749286281907,-499.15,0.00035616,2]
[364900261,1749286281916,-499.15,0.00035616,2]
[364900262,1749286281992,-499.15,0.00035616,2]
[364900263,1749286282002,-499.15,0.00035616,2]
[364900264,1749286282011,-499.15,0.00035616,2]
[364900265,1749286282021,-499.15,0.00035616,2]
[364900266,1749286282030,-499.15,0.00035616,2]
[364900267,1749286282039,-499.15,0.00035616,2]
[364900268,1749286282049,-499.15,0.00035616,2]
[364900269,1749286282059,-499.15,0.00035616,2]
[364900270,1749286282068,-499.15,0.00035616,2]
[364900271,1749286282078,-499.15,0.00035616,2]
[364900272,1749286282088,-499.15,0.00035616,2]
[364900273,1749286282098,-499.15,0.00035616,2]
[364900274,1749286282108,-499.15,0.00035616,2]
[364900275,1749286282117,-499.15,0.00035616,2]
[364900276,1749286282127,-622.36247,0.00035616,7]
[364900277,1749286282136,-499.15,0.00035616,2]
[364900278,1749286282145,-499.20343806,0.00035616,2]
[364900279,1749286282155,-150.0,0.00035616,2]
[364900280,1749286282165,-3957.07693563,0.00035616,120]
[364900281,1749286282175,-1333.0,0.00035616,2]
[364900282,1749286282185,-3576.16795,0.0003562,2]
[364900283,1749286282194,-312.38,0.0003564,30]
[364900284,1749286282204,-150.0,0.00035643,60]
[364900285,1749286282214,-203.64450596,0.00035643,60]
[364900286,1749286282225,-500.0,0.00035643,60]
[364900287,1749286282235,-150.0,0.00035643,60]
[364900288,1749286282247,-500.0,0.00035643,60]
[364900289,1749286282258,-500.0,0.00035643,2]
[364900290,1749286282267,-150.0,0.00035643,60]
[364900291,1749286282279,-500.0,0.00035643,60]
[364900292,1749286282288,-500.0,0.00035643,60]
[364900293,1749286282298,-150.0,0.00035643,60]
[364900294,1749286282309,-500.0,0.00035643,2]
[364900295,1749286282321,-2016.0,0.00035643,60]
[364900296,1749286282334,-150.0,0.00035643,60]
[364900297,1749286282343,-150.0,0.00035643,60]
[364900298,1749286282352,-500.0,0.00035643,60]
[364900299,1749286282361,-150.0,0.00035643,60]
[364900300,1749286282372,-350.39756868,0.00035643,60]
[364900301,1749286282381,-500.0,0.00035643,60]
[364900302,1749286282391,-2408.0,0.00035643,60]
[364900303,1749286282403,-500.0,0.00035643,60]
[364900304,1749286282412,-500.0,0.00035643,60]
[364900305,1749286282422,-150.0,0.00035671,60]
[364900306,1749286282433,-500.0,0.00035671,60]
[364900307,1749286282445,-150.0,0.00035671,60]
[364900308,1749286282455,-500.0,0.00035671,60]
[364900309,1749286282465,-500.0,0.00035671,2]
[364900310,1749286282474,-150.0,0.00035671,60]
[364900311,1749286282483,-500.0,0.00035671,60]
[364900312,1749286282494,-505.46701861,0.00035671,60]
[364900313,1749286282512,-150.0,0.00035671,60]
[364900314,1749286282531,-500.0,0.00035671,2]
[364900315,1749286282540,-2016.0,0.00035671,60]
[364900316,1749286282551,-252.05656481,0.00035671,60]
[364900317,1749286282561,-150.0,0.00035671,60]
[364900318,1749286282572,-500.0,0.00035671,60]
[364900319,1749286282582,-150.0,0.00035671,60]
[364900320,1749286282591,-500.0,0.00035671,60]
[364900321,1749286282601,-2408.0,0.00035671,60]
[364900322,1749286282611,-500.0,0.00035671,60]
[364900323,1749286282620,-500.0,0.00035671,60]
[364900324,1749286282628,-150.0,0.00035681,120]
[364900325,1749286282638,-150.0,0.00035698,60]
[364900326,1749286282650,-408.46492253,0.00035698,60]
[364900327,1749286282662,-150.0,0.00035698,60]
[364900328,1749286282671,-245.74451207,0.00035698,60]
[364900329,1749286282682,-500.0,0.00035698,2]
[364900330,1749286282692,-154.81865164,0.00035698,60]
[364900331,1749286282702,-500.0,0.00035698,60]
[364900332,1749286282712,-150.0,0.00035698,60]
[364900333,1749286282723,-500.0,0.00035698,2]
[364900334,1749286282733,-2016.0,0.00035698,60]
[364900335,1749286282742,-201.21113638,0.00035698,60]
[364900336,1749286282751,-500.0,0.00035698,60]
[364900337,1749286282762,-150.0,0.00035698,60]
[364900338,1749286282772,-500.0,0.00035698,60]
[364900339,1749286282782,-2408.0,0.00035698,60]
[364900340,1749286282793,-500.0,0.00035698,60]
[364900341,1749286282802,-500.0,0.00035698,60]
[364900342,1749286282812,-151.0,0.000357,7]
[364900343,1749286282822,-166.008992,0.000357,7]
[364900344,1749286282834,-230.33985,0.000357,7]
[364900345,1749286282845,-151.0,0.000357,7]
[364900346,1749286282856,-151.0,0.000357,7]
[364900347,1749286282866,-283.401943,0.000357,7]
[364900348,1749286282876,-150.0,0.00035726,60]
[364900349,1749286282886,-251.37534164,0.00035726,60]
[364900350,1749286282896,-500.0,0.00035726,2]
[364900351,1749286282906,-500.0,0.00035726,60]
[364900352,1749286282917,-170.35901753,0.00035726,60]
[364900353,1749286282927,-500.0,0.00035726,2]
[364900354,1749286282938,-2016.0,0.00035726,60]
[364900355,1749286282949,-500.0,0.00035726,60]
[364900356,1749286282958,-150.0,0.00035726,60]
[364900357,1749286282968,-500.0,0.00035726,60]
[364900358,1749286282979,-2408.0,0.00035726,60]
[364900359,1749286282989,-500.0,0.00035726,60]
[364900360,1749286282999,-500.0,0.00035726,60]
[364900361,1749286283009,-150.0,0.00035753,60]
[364900362,1749286283019,-500.0,0.00035753,2]
[364900363,1749286283030,-500.0,0.00035753,60]
[364900364,1749286283040,-500.0,0.00035753,2]
[364900365,1749286283050,-2016.0,0.00035753,60]
[364900366,1749286283060,-500.0,0.00035753,60]
[364900367,1749286283070,-178.49168584,0.00035753,60]
[364900368,1749286283079,-500.0,0.00035753,60]
[364900369,1749286283090,-2408.0,0.00035753,60]
[364900370,1749286283101,-500.0,0.00035753,60]
[364900371,1749286283110,-500.0,0.00035753,60]
[364900372,1749286283120,-150.0,0.0003578,60]
[364900373,1749286283130,-500.0,0.0003578,2]
[364900374,1749286283140,-500.0,0.0003578,60]
[364900375,1749286283150,-500.0,0.0003578,2]
[364900376,1749286283159,-2016.0,0.0003578,60]
[364900377,1749286283169,-500.0,0.0003578,60]
[364900378,1749286283179,-500.0,0.0003578,60]
[364900379,1749286283188,-2408.0,0.0003578,60]
[364900380,1749286283198,-500.0,0.0003578,60]
[364900381,1749286283208,-500.0,0.0003578,60]
[364900382,1749286283218,-151.0,0.000358,7]
[364900383,1749286283227,-151.0,0.000358,7]
[364900384,1749286283237,-608.063844,0.000358,7]
[364900385,1749286283247,-608.063844,0.000358,7]
[364900386,1749286283257,-151.0,0.000358,7]
[364900387,1749286283268,-151.0,0.000358,7]
[364900388,1749286283286,-280.850677,0.000358,7]
[364900389,1749286283302,-280.850677,0.000358,7]
[364900390,1749286283312,-151.0,0.000358,7]
[364900391,1749286283323,-161.400488,0.000358,7]
[364900392,1749286283333,-1642.080816,0.000358,7]
[364900393,1749286283345,-1642.080816,0.000358,7]
[364900394,1749286283355,-252.578975,0.000358,7]
[364900395,1749286283366,-151.0,0.000358,7]
[364900396,1749286283376,-153.754553,0.000358,7]
[364900397,1749286283386,-153.754553,0.000358,7]
[364900398,1749286283396,-290.056007,0.000358,7]
[364900399,1749286283408,-150.0,0.00035808,60]
[364900400,1749286283417,-500.0,0.00035808,2]
[364900401,1749286283427,-500.0,0.00035808,60]
[364900402,1749286283437,-500.0,0.00035808,2]
[364900403,1749286283448,-2016.0,0.00035808,60]
[364900404,1749286283459,-500.0,0.00035808,60]
[364900405,1749286283469,-500.0,0.00035808,60]
[364900406,1749286283478,-2408.0,0.00035808,60]
[364900407,1749286283489,-154.04309163,0.00035808,60]
[364900408,1749286283498,-500.0,0.00035808,60]
[364900409,1749286283508,-152.0,0.00035828,8]
[364900410,1749286283518,-196.16996198,0.00035828,5]
[364900411,1749286283528,-152.0,0.00035828,3]
[364900412,1749286283539,-152.0,0.00035828,5]
[364900413,1749286283549,-150.0,0.00035835,60]
[364900414,1749286283560,-500.0,0.00035835,2]
[364900415,1749286283570,-500.0,0.00035835,60]
[364900416,1749286283580,-500.0,0.00035835,2]
[364900417,1749286283591,-2016.0,0.00035835,60]
[364900418,1749286283600,-500.0,0.00035835,60]
[364900419,1749286283610,-455.22703741,0.00035835,60]
[364900420,1749286283620,-2408.0,0.00035835,60]
[364900421,1749286283630,-500.0,0.00035835,60]
[364900422,1749286283640,-194.72792766,0.00035845,2]
[364900423,1749286283651,-267.46074303,0.00035845,2]
[364900424,1749286283661,-150.0,0.00035863,60]
[364900425,1749286283671,-500.0,0.00035863,2]
[364900426,1749286283681,-500.0,0.00035863,60]
[364900427,1749286283691,-500.0,0.00035863,2]
[364900428,1749286283702,-2016.0,0.00035863,60]
[364900429,1749286283711,-479.09263784,0.00035863,60]
[364900430,1749286283722,-2408.0,0.00035863,60]
[364900431,1749286283731,-500.0,0.00035863,60]
[364900432,1749286283742,-150.0,0.0003589,60]
[364900433,1749286283752,-500.0,0.0003589,2]
[364900434,1749286283762,-500.0,0.0003589,60]
[364900435,1749286283772,-500.0,0.0003589,2]
[364900436,1749286283782,-2016.0,0.0003589,60]
[364900437,1749286283792,-2408.0,0.0003589,60]
[364900438,1749286283801,-500.0,0.0003589,60]
[364900439,1749286283811,-345.65,0.000359,14]
[364900440,1749286283821,-700.0,0.000359,13]
[364900441,1749286283831,-13732.22033882,0.0003591,2]
[364900442,1749286283842,-150.0,0.00035917,60]
[364900443,1749286283853,-500.0,0.00035917,2]
[364900444,1749286283863,-500.0,0.00035917,60]
[364900445,1749286283873,-500.0,0.00035917,2]
[364900446,1749286283883,-2016.0,0.00035917,60]
[364900447,1749286283894,-2408.0,0.00035917,60]
[364900448,1749286283904,-500.0,0.00035917,60]
[364900449,1749286283915,-214.5414679,0.00035923,2]
[364900450,1749286283926,-3230.4402043,0.00035923,2]
[364900451,1749286283936,-150.0,0.00035945,60]
[364900452,1749286283947,-500.0,0.00035945,2]
[364900453,1749286283959,-500.0,0.00035945,60]
[364900454,1749286283971,-500.0,0.00035945,2]
[364900455,1749286283981,-2016.0,0.00035945,60]
[364900456,1749286283991,-2408.0,0.00035945,60]
[364900457,1749286284002,-500.0,0.00035945,60]
[364900458,1749286284013,-1162.98,0.00035947,2]
[364900459,1749286284023,-1162.98,0.00035947,2]
[364900460,1749286284033,-1177.1,0.00035947,2]
[364900461,1749286284043,-1162.98,0.00035947,2]
[364900462,1749286284053,-220.734717,0.00035948,7]
[364900463,1749286284065,-151.0,0.00035948,7]
[364900464,1749286284075,-151.0,0.00035948,7]
[364900465,1749286284086,-151.0,0.00035948,7]
[364900466,1749286284097,-151.736635,0.00035948,7]
[364900467,1749286284107,-151.0,0.00035948,7]
[364900468,1749286284118,-151.0,0.00035948,7]
[364900469,1749286284128,-151.0,0.00035948,7]
[364900470,1749286284139,-151.0,0.00035948,7]
[364900471,1749286284149,-151.0,0.00035948,7]
[364900472,1749286284159,-151.0,0.00035948,7]
[364900473,1749286284170,-252.054121,0.00035948,7]
[364900474,1749286284180,-252.054121,0.00035948,7]
[364900475,1749286284191,-151.0,0.00035948,7]
[364900476,1749286284201,-200.0,0.00035972,2]
[364900477,1749286284212,-200.0,0.00035972,2]
[364900478,1749286284222,-150.0,0.00035972,60]
[364900479,1749286284232,-500.0,0.00035972,2]
[364900480,1749286284243,-500.0,0.00035972,60]
[364900481,1749286284253,-287.89647761,0.00035972,2]
[364900482,1749286284263,-2016.0,0.00035972,60]
[364900483,1749286284277,-2408.0,0.00035972,60]
[364900484,1749286284287,-500.0,0.00035972,60]
[364900485,1749286284297,-796.51,0.00035991,2]
[364900486,1749286284307,-158.98309356,0.00035995,8]
[364900487,1749286284319,-150.0,0.00035996,120]
[364900488,1749286284329,-150.0,0.00036,60]
[364900489,1749286284339,-500.0,0.00036,2]
[364900490,1749286284350,-500.0,0.00036,60]
[364900491,1749286284361,-2016.0,0.00036,60]
[364900492,1749286284371,-2408.0,0.00036,60]
[364900493,1749286284380,-465.38208764,0.00036,60]
[364900494,1749286284390,-50000.0,0.00036,26]
[364900495,1749286284401,-2000.0,0.00036,2]
[364900496,1749286284411,-228199.53770282,0.00036,2]
[364900497,1749286284421,-1800.0,0.00036,37]
[364900498,1749286284431,-5000.0,0.00036,2]
[364900499,1749286284442,-5000.0,0.00036,7]
[364900500,1749286284455,-11070.4261084,0.00036,14]
[364900501,1749286284465,-20065.42024795,0.00036,2]
[364900502,1749286284476,-348.18645885,0.00036,120]
[364900503,1749286284487,-250.0,0.00036,2]
[364900504,1749286284497,-1050.76161084,0.00036,30]
[364900505,1749286284508,-1500.0,0.00036,120]
[364900506,1749286284518,-162.27,0.00036,8]
[364900507,1749286284529,-400.0,0.00036,30]
[364900508,1749286284539,-151.0,0.00036,7]
[364900509,1749286284549,-160.0,0.00036,30]
[364900510,1749286284561,-151.0,0.00036,7]
[364900511,1749286284572,-171.445012,0.00036,7]
[364900512,1749286284582,-151.0,0.00036,7]
[364900513,1749286284593,-152.81944,0.00036,7]
[364900514,1749286284603,-151.0,0.00036,7]
[364900515,1749286284614,-151.0,0.00036,7]
[364900516,1749286284624,-153.155426,0.00036,7]
[364900517,1749286284635,-151.0,0.00036,7]
[364900518,1749286284646,-151.0,0.00036,7]
[364900519,1749286284657,-151.0,0.00036,7]
[364900520,1749286284667,-151.0,0.00036,7]
[364900521,1749286284677,-151.0,0.00036,7]
[364900522,1749286284688,-151.0,0.00036,7]
[364900523,1749286284698,-151.0,0.00036,7]
[364900524,1749286284708,-151.0,0.00036,7]
[364900525,1749286284718,-151.0,0.00036,7]
[364900526,1749286284728,-151.0,0.00036,7]
[364900527,1749286284738,-151.0,0.00036,7]
[364900528,1749286284748,-151.0,0.00036,7]
[364900529,1749286284758,-151.0,0.00036,7]
[364900530,1749286284767,-151.0,0.00036,7]
[364900531,1749286284777,-151.0,0.00036,7]
[364900532,1749286284787,-151.0,0.00036,7]
[364900533,1749286284797,-151.0,0.00036,7]
[364900534,1749286284807,-151.0,0.00036,7]
[364900535,1749286284818,-151.0,0.00036,7]
[364900536,1749286284828,-155.108199,0.00036,7]
[364900537,1749286284839,-151.0,0.00036,7]
[364900538,1749286284849,-882.497629,0.00036,7]
[364900539,1749286284859,-882.497629,0.00036,7]
[364900540,1749286284870,-322.673426,0.00036,7]
[364900541,1749286284880,-322.673426,0.00036,7]
[364900542,1749286284890,-151.0,0.00036,7]
[364900543,1749286284900,-151.0,0.00036,7]
[364900544,1749286284910,-151.0,0.00036,7]
[364900545,1749286284920,-151.0,0.00036,7]
[364900546,1749286284930,-151.0,0.00036,7]
[364900547,1749286284940,-151.0,0.00036,7]
[364900548,1749286284950,-151.0,0.00036,7]
[364900549,1749286284960,-151.0,0.00036,7]
[364900550,1749286284969,-151.0,0.00036,7]
[364900551,1749286284980,-719.880958,0.00036,7]
[364900552,1749286284990,-719.880958,0.00036,7]
[364900553,1749286285001,-151.0,0.00036,7]
[364900554,1749286285012,-151.0,0.00036,7]
[364900555,1749286285021,-151.0,0.00036,7]
[364900556,1749286285032,-151.0,0.00036,7]
[364900557,1749286285042,-151.0,0.00036,7]
[364900558,1749286285052,-191.753818,0.00036,7]
[364900559,1749286285063,-191.753818,0.00036,7]
[364900560,1749286285073,-151.0,0.00036,7]
[364900561,1749286285083,-151.0,0.00036,7]
[364900562,1749286285093,-171.882811,0.00036,7]
[364900563,1749286285103,-171.882811,0.00036,7]
[364900564,1749286285112,-160.0,0.00036,30]
[364900565,1749286285123,-151.0,0.00036,7]
[364900566,1749286285133,-151.0,0.00036,7]
[364900567,1749286285144,-151.0,0.00036,7]
[364900568,1749286285154,-151.0,0.00036,7]
[364900569,1749286285164,-572.91785,0.00036,7]
[364900570,1749286285174,-572.91785,0.00036,7]
[364900571,1749286285184,-151.0,0.00036,7]
[364900572,1749286285194,-151.0,0.00036,7]
[364900573,1749286285204,-1563.367253,0.00036,7]
[364900574,1749286285214,-1563.367253,0.00036,7]
[364900575,1749286285224,-207.852747,0.00036,7]
[364900576,1749286285235,-1221.810892,0.00036,7]
[364900577,1749286285245,-207.852747,0.00036,7]
[364900578,1749286285255,-1221.810892,0.00036,7]
[364900579,1749286285265,-151.0,0.00036,7]
[364900580,1749286285279,-151.0,0.00036,7]
[364900581,1749286285289,-151.0,0.00036,7]
[364900582,1749286285298,-153.436081,0.00036,7]
[364900583,1749286285308,-426.267147,0.00036,7]
[364900584,1749286285318,-426.267147,0.00036,7]
[364900585,1749286285328,-151.0,0.00036,7]
[364900586,1749286285339,-214.0,0.00036,2]
[364900587,1749286285349,-4000.0,0.00036,4]
[364900588,1749286285361,-622.36247,0.00036,7]
[364900589,1749286285371,-281.91263806,0.00036027,60]
[364900590,1749286285382,-326.03327308,0.00036027,2]
[364900591,1749286285392,-190.56376178,0.00036027,60]
[364900592,1749286285402,-2016.0,0.00036027,60]
[364900593,1749286285412,-2408.0,0.00036027,60]
[364900594,1749286285422,-150.0,0.00036049,2]
[364900595,1749286285432,-2016.0,0.00036054,60]
[364900596,1749286285442,-2408.0,0.00036054,60]
[364900597,1749286285453,-205.0,0.00036066,4]
[364900598,1749286285463,-2016.0,0.00036082,60]
[364900599,1749286285473,-2408.0,0.00036082,60]
[364900600,1749286285483,-12000.0,0.00036102,8]
[364900601,1749286285493,-4655.34628196,0.00036107,34]
[364900602,1749286285502,-2016.0,0.00036109,60]
[364900603,1749286285512,-2408.0,0.00036109,60]
[364900604,1749286285522,-2110.0,0.00036116,2]
[364900605,1749286285531,-150.0,0.00036124,120]
[364900606,1749286285541,-2016.0,0.00036137,60]
[364900607,1749286285551,-2408.0,0.00036137,60]
[364900608,1749286285560,-2016.0,0.00036164,60]
[364900609,1749286285570,-2408.0,0.00036164,60]
[364900610,1749286285579,-500.0,0.00036164,13]
[364900611,1749286285590,-200.0,0.00036164,2]
[364900612,1749286285599,-150.0,0.00036179,120]
[364900613,1749286285609,-2016.0,0.00036191,60]
[364900614,1749286285619,-2408.0,0.00036191,60]
[364900615,1749286285628,-249.898825,0.000362,7]
[364900616,1749286285638,-249.898825,0.000362,7]
[364900617,1749286285648,-151.0,0.000362,7]
[364900618,1749286285658,-151.0,0.000362,7]
[364900619,1749286285667,-151.0,0.000362,7]
[364900620,1749286285678,-2016.0,0.00036219,60]
[364900621,1749286285687,-2408.0,0.00036219,60]
[364900622,1749286285697,-3576.16796,0.0003624,2]
[364900623,1749286285707,-2000.0,0.00036241,60]
[364900624,1749286285717,-2018.21349315,0.00036246,60]
[364900625,1749286285727,-2421.22230757,0.00036246,60]
[364900626,1749286285737,-177.0,0.00036247,30]
[364900627,1749286285747,-279.0,0.00036247,30]
[364900628,1749286285757,-200.0,0.00036332,2]
[364900629,1749286285767,-200.0,0.00036332,2]
[364900630,1749286285777,-1000.0,0.00036378,31]
[364900631,1749286285787,-345.65,0.000364,14]
[364900632,1749286285798,-17407.82,0.000364,14]
[364900633,1749286285808,-276.27,0.00036438,2]
[364900634,1749286285818,-500.0,0.00036488,60]
[364900635,1749286286055,-150.0,0.00036494,120]
[364900636,1749286286066,-5000.0,0.000365,30]
[364900637,1749286286078,-152.0,0.00036549,5]
[364900638,1749286286088,-29914.74931719,0.00036595,2]
[364900639,1749286286098,-162.8942633,0.000366,2]
[364900640,1749286286108,-150.0,0.00036608,120]
[364900641,1749286286117,-2110.0,0.00036616,2]
[364900642,1749286286127,-200.0,0.00036695,2]
[364900643,1749286286136,-200.0,0.00036695,2]
[364900644,1749286286146,-197.65281716,0.000367,2]
[364900645,1749286286156,-175.74553601,0.000367,2]
[364900646,1749286286166,-1498.00626041,0.000367,2]
[364900647,1749286286176,-500.0,0.00036712,14]
[364900648,1749286286185,-150.0,0.0003676,120]
[364900649,1749286286195,-1162.98,0.00036769,2]